lending/lending_fUSD_20250122
["ID","MTS","AMOUNT","RATE_DAILY","PERIOD"]
[349958625,1737535876662,-500.0,0.00021638,2]
[349958626,1737535876671,-822.84,0.00021638,2]
[349958627,1737535876681,-984.18,0.00021638,2]
[349958628,1737535876691,-1080.22,0.00021638,2]
[349958629,1737535876699,-500.0,0.00021638,2]
[349958630,1737535876709,-500.0,0.00021638,2]
[349958631,1737535876719,-500.0,0.00021638,2]
[349958632,1737535876729,-500.0,0.00021638,2]
[349958633,1737535876739,-500.0,0.00021638,2]
[349958634,1737535876749,-502.19,0.00021638,2]
[349958635,1737535876759,-520.67731626,0.00021638,2]
[349958636,1737535876769,-543.73,0.00021638,2]
[349958637,1737535876778,-465.00990546,0.00021638,2]
[349958638,1737535876794,-500.0,0.00019719,2]
[349958639,1737535876803,-34.99009454,0.00021638,2]
[349958640,1737535876814,-1225.68,0.00021638,2]
[349958641,1737535876823,-1080.05,0.00021638,2]
[349958642,1737535876832,-500.0,0.00021638,2]
[349958643,1737535876843,-1315.5,0.00021638,2]
[349958644,1737535876853,-1134.22,0.00021638,2]
[349958645,1737535876862,-1416.75870546,0.00021638,2]
[349958646,1737535877000,-1000.0,0.00021638,2]
[349958647,1737535877231,-198.54543626,0.00019445,2]
[349958648,1737535877240,-386.09551335,0.00019445,2]
[349958649,1737535877250,-500.0,0.00019445,2]
[349958650,1737535877260,-500.0,0.00019993,2]
[349958651,1737535877270,-500.0,0.00020267,2]
[349958652,1737535877280,-500.0,0.00020541,2]
[349958653,1737535877290,-500.0,0.00020815,2]
[349958654,1737535877299,-500.0,0.00021089,2]
[349958655,1737535877308,-500.0,0.00021363,2]
[349958656,1737535877319,-500.0,0.00021637,2]
[349958657,1737535877327,-6455.59129454,0.00021638,2]
[349958658,1737535877338,-548.7,0.00021638,2]
[349958659,1737535877348,-500.0,0.00021638,2]
[349958660,1737535877358,-1108.55,0.00021638,2]
[349958661,1737535877368,-500.0,0.00021638,2]
[349958662,1737535877378,-639.54030937,0.00021638,2]
[349958663,1737535877388,-533.36,0.00021638,2]
[349958664,1737535877399,-879.16,0.00021638,2]
[349958665,1737535877408,-666.0,0.00021638,2]
[349958666,1737535877418,-500.0,0.00021638,2]
[349958667,1737535877428,-2887.3,0.00021638,2]
[349958668,1737535877438,-500.0,0.00021638,2]
[349958669,1737535877448,-500.0,0.00021638,2]
[349958670,1737535877458,-1192.26,0.00021638,2]
[349958671,1737535877470,-1613.65,0.00021638,2]
[349958672,1737535877481,-840.93,0.00021638,2]
[349958673,1737535877491,-1815.41,0.00021638,2]
[349958674,1737535877501,-627.34,0.00021638,2]
[349958675,1737535877510,-552.73,0.00021638,2]
[349958676,1737535877519,-500.0,0.00021638,2]
[349958677,1737535877644,-1000.0,0.00021638,2]
[349958678,1737535877673,-168.074362,0.00021638,2]
[349958679,1737535877684,-168.074362,0.00021638,2]
[349958680,1737535877694,-844.08,0.00021638,2]
[349958681,1737535877705,-500.0,0.00021638,2]
[349958682,1737535877716,-500.0,0.00021638,2]
[349958683,1737535877726,-500.0,0.00021638,2]
[349958684,1737535877736,-2817.94,0.00021638,2]
[349958685,1737535877746,-1195.95,0.00021638,2]
[349958686,1737535877755,-500.0,0.00021638,2]
[349958687,1737535877764,-2298.19,0.00021638,2]
[349958688,1737535877773,-721.13,0.00021638,2]
[349958689,1737535877783,-537.9,0.00021638,2]
[349958690,1737535877794,-1122.6,0.00021638,2]
[349958691,1737535877804,-1284.0,0.00021638,2]
[349958692,1737535877814,-584.46,0.00021638,2]
[349958693,1737535877823,-793.95,0.00021639,2]
[349958694,1737535877832,-710.25,0.00021639,2]
[349958695,1737535877842,-500.0,0.00021639,2]
[349958696,1737535877852,-500.0,0.00021639,2]
[349958697,1737535877862,-500.0,0.00021639,2]
[349958698,1737535877871,-1448.78,0.00021639,2]
[349958699,1737535877881,-1032.82,0.00021639,2]
[349958700,1737535877891,-1224.48,0.00021639,2]
[349958701,1737535877900,-565.46,0.00021639,2]
[349958702,1737535877910,-500.0,0.00021639,2]
[349958703,1737535877920,-500.0,0.00021639,2]
[349958704,1737535877932,-500.0,0.00021639,2]
[349958705,1737535877943,-500.0,0.00021639,2]
[349958706,1737535877953,-205.26902049,0.00021678,3]
[349958707,1737535877963,-500.0,0.00021684,2]
[349958708,1737535877974,-992.43,0.00021685,7]
[349958709,1737535877984,-992.43,0.00021685,7]
[349958710,1737535877994,-220.0,0.000217,2]
[349958711,1737535878004,-179.38451183,0.00021717,2]
[349958712,1737535878014,-168.24240215,0.00021719,2]
[349958713,1737535878024,-500.55,0.0002178,2]
[349958714,1737535878034,-500.55,0.0002178,2]
[349958715,1737535878044,-500.55,0.0002178,2]
[349958716,1737535878053,-500.55,0.0002178,2]
[349958717,1737535878063,-500.55,0.0002178,2]
[349958718,1737535878073,-500.55,0.0002178,2]
[349958719,1737535878083,-500.55,0.0002178,2]
[349958720,1737535878093,-500.55,0.0002178,2]
[349958721,1737535878102,-500.55,0.0002178,2]
[349958722,1737535878112,-205.26902049,0.00021789,3]
[349958723,1737535878122,-150.0,0.00021792,4]
[349958724,1737535878131,-500.0,0.00021821,2]
[349958725,1737535878141,-150.0,0.00021841,2]
[349958726,1737535878151,-150.0,0.00021849,4]
[349958727,1737535878160,-2557.93,0.0002188,2]
[349958728,1737535878171,-2000.0,0.0002188,2]
[349958729,1737535878181,-500.0,0.00021887,15]
[349958730,1737535878190,-500.0,0.00021888,14]
[349958731,1737535878200,-432.61797383,0.00021898,2]
[349958732,1737535878211,-864.33043042,0.00021898,2]
[349958733,1737535878221,-433.07022453,0.000219,2]
[349958734,1737535878232,-2000.0,0.000219,2]
[349958735,1737535878242,-1494.9027,0.000219,2]
[349958736,1737535878251,-179.38451183,0.000219,2]
[349958737,1737535878261,-191.05427718,0.000219,2]
[349958738,1737535878271,-191.05427717,0.000219,2]
[349958739,1737535878280,-191.05427717,0.000219,2]
[349958740,1737535878290,-205.26902049,0.000219,3]
[349958741,1737535878300,-168.24240215,0.000219,2]
[349958742,1737535878310,-13375.65090119,0.0002191,2]
[349958743,1737535878319,-687.92,0.00021911,2]
[349958744,1737535878329,-829.09,0.00021911,2]
[349958745,1737535878338,-500.0,0.00021911,2]
[349958746,1737535878348,-500.0,0.00021911,2]
[349958747,1737535878358,-706.98,0.00021911,2]
[349958748,1737535878368,-524.39,0.00021911,2]
[349958749,1737535878378,-500.0,0.00021911,2]
[349958750,1737535878388,-500.0,0.00021911,2]
[349958751,1737535878397,-555.75,0.00021911,2]
[349958752,1737535878407,-882.85,0.00021911,2]
[349958753,1737535878417,-974.81,0.00021911,2]
[349958754,1737535878427,-500.0,0.00021911,2]
[349958755,1737535878437,-636.5911757,0.00021911,2]
[349958756,1737535878454,-1033.33,0.00021911,2]
[349958757,1737535878463,-881.186028,0.00021911,2]
[349958758,1737535878472,-668.82,0.00021911,2]
[349958759,1737535878482,-584.92,0.00021911,2]
[349958760,1737535878492,-597.75,0.00021911,2]
[349958761,1737535878503,-1383.258647,0.00021911,2]
[349958762,1737535878512,-21.03398528,0.00021911,2]
[349958763,1737535878585,-478.96601472,0.00021911,2]
[349958764,1737535878596,-500.0,0.00021911,2]
[349958765,1737535878605,-1189.34,0.00021911,2]
[349958766,1737535878615,-500.0,0.00021911,2]
[349958767,1737535878625,-452.86184065,0.00021911,2]
[349958768,1737535878641,-47.13815935,0.00021911,2]
[349958769,1737535878651,-708.96,0.00021911,2]
[349958770,1737535878661,-664.95,0.00021911,2]
[349958771,1737535878670,-1395.76,0.00021911,2]
[349958772,1737535878680,-567.8,0.00021911,2]
[349958773,1737535878689,-500.0,0.00021911,2]
[349958774,1737535878698,-1026.06,0.00021911,2]
[349958775,1737535878708,-500.0,0.00021911,2]
[349958776,1737535878718,-553.55,0.00021911,2]
[349958777,1737535878727,-500.0,0.00021911,2]
[349958778,1737535878737,-1399.0,0.00021911,2]
[349958779,1737535878746,-897.03,0.00021911,2]
[349958780,1737535878756,-500.0,0.00021911,2]
[349958781,1737535878765,-880.39,0.00021911,2]
[349958782,1737535878775,-500.0,0.00021911,2]
[349958783,1737535878784,-1082.05,0.00021911,2]
[349958784,1737535878794,-1124.96,0.00021911,2]
[349958785,1737535878803,-791.67,0.00021911,2]
[349958786,1737535878814,-659.65,0.00021911,2]
[349958787,1737535878823,-897.68,0.00021911,2]
[349958788,1737535878833,-1008.18,0.00021911,2]
[349958789,1737535878842,-1914.1,0.00021911,2]
[349958790,1737535878852,-500.0,0.00021911,2]
[349958791,1737535878861,-805.46,0.00021911,2]
[349958792,1737535878871,-2511.45,0.00021911,2]
[349958793,1737535878881,-500.55,0.00021911,2]
[349958794,1737535878891,-500.0,0.00021911,2]
[349958795,1737535878901,-500.0,0.00021911,2]
[349958796,1737535878911,-1206.52,0.00021911,2]
[349958797,1737535878921,-4007.33,0.00021911,2]
[349958798,1737535878933,-2492.62,0.00021911,2]
[349958799,1737535878946,-1678.2,0.00021911,2]
[349958800,1737535878956,-1512.08,0.00021911,2]
[349958801,1737535878967,-956.5,0.00021911,2]
[349958802,1737535878976,-280.6,0.00021911,2]
[349958803,1737535878986,-500.0,0.00021911,2]
[349958804,1737535878994,-859.9,0.00021911,2]
[349958805,1737535879004,-564.94,0.00021911,2]
[349958806,1737535879014,-500.0,0.00021911,2]
[349958807,1737535879024,-790.06,0.00021911,2]
[349958808,1737535879035,-2269.74,0.00021911,2]
[349958809,1737535879045,-500.0,0.00021911,2]
[349958810,1737535879054,-4879.48,0.00021911,2]
[349958811,1737535879065,-500.0,0.00021911,2]
[349958812,1737535879075,-1144.32,0.00021911,2]
[349958813,1737535879086,-500.0,0.00021911,2]
[349958814,1737535879096,-2054.82,0.00021911,2]
[349958815,1737535879106,-827.92,0.00021911,2]
[349958816,1737535879117,-1126.58184165,0.00021911,2]
[349958817,1737535879139,-500.0,0.00019445,2]
[349958818,1737535879149,-835.12815835,0.00021911,2]
[349958819,1737535879159,-1416.44,0.00021911,2]
[349958820,1737535879169,-3220.53,0.00021911,2]
[349958821,1737535879179,-2309.19,0.00021911,2]
[349958822,1737535879189,-1086.97,0.00021911,2]
[349958823,1737535879200,-836.64,0.00021911,2]
[349958824,1737535879210,-1125.48,0.00021911,2]
[349958825,1737535879223,-1355.86,0.00021911,2]
[349958826,1737535879235,-537.78,0.00021911,2]
[349958827,1737535879246,-644.18,0.00021911,2]
[349958828,1737535879256,-4222.06,0.00021911,2]
[349958829,1737535879266,-1148.64,0.00021911,2]
[349958830,1737535879276,-1996.49,0.00021911,2]
[349958831,1737535879286,-3033.92,0.00021911,2]
[349958832,1737535879296,-500.0,0.00021911,2]
[349958833,1737535879306,-2532.04,0.00021911,2]
[349958834,1737535879316,-574.92,0.00021911,2]
[349958835,1737535879325,-940.76,0.00021911,2]
[349958836,1737535879334,-1198.58,0.00021911,2]
[349958837,1737535879344,-1231.92,0.00021911,2]
[349958838,1737535879355,-1021.16,0.00021911,2]
[349958839,1737535879365,-500.0,0.00021911,2]
[349958840,1737535879375,-850.43,0.00021911,2]
[349958841,1737535879385,-626.58,0.00021911,2]
[349958842,1737535879395,-1522.34,0.00021911,2]
[349958843,1737535879405,-1365.0,0.00021911,2]
[349958844,1737535879414,-603.87,0.00021911,2]
[349958845,1737535879424,-1288.07,0.00021911,2]
[349958846,1737535879434,-844.42,0.00021911,2]
[349958847,1737535879444,-566.83,0.00021911,2]
[349958848,1737535879453,-537.66,0.00021911,2]
[349958849,1737535879463,-511.79,0.00021911,2]
[349958850,1737535879474,-913.82,0.00021911,2]
[349958851,1737535879486,-2700.97,0.00021911,2]
[349958852,1737535879502,-189.62,0.00021911,2]
[349958853,1737535879512,-500.0,0.00021911,2]
[349958854,1737535879523,-1158.45,0.00021911,2]
[349958855,1737535879533,-872.83,0.00021911,2]
[349958856,1737535879544,-2209.36,0.00021911,2]
[349958857,1737535879554,-3528.61,0.00021911,2]
[349958858,1737535879563,-773.09,0.00021911,2]
[349958859,1737535879573,-614.04,0.00021911,2]
[349958860,1737535879583,-1417.55,0.00021911,2]
[349958861,1737535879593,-1067.42,0.00021911,2]
[349958862,1737535879603,-2595.8,0.00021911,2]
[349958863,1737535879613,-633.97,0.00021911,2]
[349958864,1737535879622,-500.0,0.00021911,2]
[349958865,1737535879631,-628.26,0.00021911,2]
[349958866,1737535879642,-1154.33,0.00021911,2]
[349958867,1737535879652,-500.0,0.00021911,2]
[349958868,1737535879662,-500.0,0.00021911,2]
[349958869,1737535879672,-1232.72,0.00021911,2]
[349958870,1737535879795,-4385.76,0.00021911,2]
[349958871,1737535879806,-500.0,0.00021911,2]
[349958872,1737535879816,-1178.01,0.00021911,2]
[349958873,1737535879826,-500.0,0.00021911,2]
[349958874,1737535879836,-851.04,0.00021911,2]
[349958875,1737535879846,-844.74,0.00021911,2]
[349958876,1737535879855,-500.0,0.00021911,2]
[349958877,1737535879864,-2089.41,0.00021911,2]
[349958878,1737535879874,-577.47,0.00021911,2]
[349958879,1737535879883,-690.97,0.00021911,2]
[349958880,1737535879893,-1722.38,0.00021911,2]
[349958881,1737535879902,-1001.69,0.00021911,2]
[349958882,1737535879912,-799.05,0.00021911,2]
[349958883,1737535879922,-1433.52,0.00021911,2]
[349958884,1737535879935,-680.57,0.00021911,2]
[349958885,1737535879947,-866.15,0.00021911,2]
[349958886,1737535879956,-500.0,0.00021911,2]
[349958887,1737535879966,-309.90804829,0.00021911,2]
[349958888,1737535879976,-525.26,0.00021911,2]
[349958889,1737535879986,-658.51,0.00021911,2]
[349958890,1737535879997,-1460.47,0.00021911,2]
[349958891,1737535880009,-1012.24,0.00021911,2]
[349958892,1737535880021,-703.88,0.00021911,2]
[349958893,1737535880031,-500.0,0.00021911,2]
[349958894,1737535880041,-500.0,0.00021911,2]
[349958895,1737535880051,-2713.11,0.00021911,2]
[349958896,1737535880061,-2398.07,0.00021911,2]
[349958897,1737535880071,-508.44,0.00021911,2]
[349958898,1737535880080,-500.0,0.00021911,2]
[349958899,1737535880090,-2259.96,0.00021911,2]
[349958900,1737535880099,-645.23093534,0.00021911,2]
[349958901,1737535880108,-1542.11,0.00021911,2]
[349958902,1737535880117,-1046.31,0.00021911,2]
[349958903,1737535880127,-876.07,0.00021911,2]
[349958904,1737535880137,-2654.27,0.00021911,2]
[349958905,1737535880148,-500.0,0.00021911,2]
[349958906,1737535880158,-588.37,0.00021911,2]
[349958907,1737535880167,-1263.25,0.00021911,2]
[349958908,1737535880177,-588.54,0.00021911,2]
[349958909,1737535880187,-500.0,0.00021911,2]
[349958910,1737535880197,-623.1,0.00021912,2]
[349958911,1737535880206,-500.0,0.00021912,2]
[349958912,1737535880216,-500.0,0.00021912,2]
[349958913,1737535880225,-500.0,0.00021912,2]
[349958914,1737535880235,-500.0,0.00021912,2]
[349958915,1737535880245,-906.12,0.00021912,2]
[349958916,1737535880255,-424.88279128,0.00021912,2]
[349958917,1737535880264,-500.0,0.00021912,2]
[349958918,1737535880275,-500.0,0.00021912,2]
[349958919,1737535880286,-557.75,0.00021912,2]
[349958920,1737535880295,-500.0,0.00021912,2]
[349958921,1737535880305,-500.0,0.00021912,2]
[349958922,1737535880314,-523.97,0.00021912,2]
[349958923,1737535880324,-500.0,0.00021912,2]
[349958924,1737535880334,-684.22,0.00021912,2]
[349958925,1737535880343,-500.76,0.00021912,2]
[349958926,1737535880353,-500.0,0.00021912,2]
[349958927,1737535880363,-500.0,0.00021912,2]
[349958928,1737535880373,-500.0,0.00021912,2]
[349958929,1737535880382,-500.0,0.00021912,2]
[349958930,1737535880392,-500.0,0.00021912,2]
[349958931,1737535880401,-500.0,0.00021912,2]
[349958932,1737535880411,-500.0,0.00021912,2]
[349958933,1737535880420,-891.46,0.00021912,2]
[349958934,1737535880430,-626.77,0.00021912,2]
[349958935,1737535880439,-974.67,0.00021912,2]
[349958936,1737535880450,-500.0,0.00021912,2]
[349958937,1737535880459,-500.0,0.00021912,2]
[349958938,1737535880470,-667.94,0.00021912,2]
[349958939,1737535880480,-1171.25,0.00021912,2]
[349958940,1737535880490,-720.08,0.00021912,2]
[349958941,1737535880500,-1121.27,0.00021912,2]
[349958942,1737535880509,-761.43,0.00021912,2]
[349958943,1737535880519,-500.0,0.00021912,2]
[349958944,1737535880529,-885.44,0.00021912,2]
[349958945,1737535880538,-593.11,0.00021912,2]
[349958946,1737535880548,-810.91,0.00021912,2]
[349958947,1737535880559,-797.59,0.00021912,2]
[349958948,1737535880569,-500.0,0.00021912,2]
[349958949,1737535880579,-500.0,0.00021912,2]
[349958950,1737535880589,-607.39,0.00021912,2]
[349958951,1737535880599,-500.0,0.00021912,2]
[349958952,1737535880609,-500.0,0.00021912,2]
[349958953,1737535880619,-500.0,0.00021912,2]
[349958954,1737535880629,-669.28,0.00021912,2]
[349958955,1737535880638,-500.0,0.00021912,2]
[349958956,1737535880648,-500.0,0.00021912,2]
[349958957,1737535880658,-500.0,0.00021912,2]
[349958958,1737535880667,-500.0,0.00021912,2]
[349958959,1737535880677,-500.0,0.00021912,2]
[349958960,1737535880687,-822.84,0.00021912,2]
[349958961,1737535880696,-984.18,0.00021912,2]
[349958962,1737535880705,-1080.22,0.00021912,2]
[349958963,1737535880716,-500.0,0.00021912,2]
[349958964,1737535880725,-500.0,0.00021912,2]
[349958965,1737535880735,-500.0,0.00021912,2]
[349958966,1737535880744,-500.0,0.00021912,2]
[349958967,1737535880754,-500.0,0.00021912,2]
[349958968,1737535880765,-502.19,0.00021912,2]
[349958969,1737535880775,-543.73,0.00021912,2]
[349958970,1737535880785,-500.0,0.00021912,2]
[349958971,1737535880795,-1225.68,0.00021912,2]
[349958972,1737535880804,-1080.05,0.00021912,2]
[349958973,1737535880814,-500.0,0.00021912,2]
[349958974,1737535880824,-1315.5,0.00021912,2]
[349958975,1737535880835,-1134.22,0.00021912,2]
[349958976,1737535880844,-8872.35,0.00021912,2]
[349958977,1737535880854,-548.7,0.00021912,2]
[349958978,1737535880863,-500.0,0.00021912,2]
[349958979,1737535880873,-1108.55,0.00021912,2]
[349958980,1737535880883,-418.21840016,0.00021912,2]
[349958981,1737535880893,-533.36,0.00021912,2]
[349958982,1737535880902,-879.16,0.00021912,2]
[349958983,1737535880912,-666.0,0.00021912,2]
[349958984,1737535880922,-500.0,0.00021912,2]
[349958985,1737535880933,-2887.3,0.00021912,2]
[349958986,1737535880942,-500.0,0.00021912,2]
[349958987,1737535880951,-500.0,0.00021912,2]
[349958988,1737535880961,-1192.26,0.00021912,2]
[349958989,1737535880971,-1613.65,0.00021912,2]
[349958990,1737535880982,-840.93,0.00021912,2]
[349958991,1737535880991,-1815.41,0.00021912,2]
[349958992,1737535881001,-627.34,0.00021912,2]
[349958993,1737535881012,-552.73,0.00021912,2]
[349958994,1737535881022,-500.0,0.00021912,2]
[349958995,1737535881031,-1000.0,0.00021912,2]
[349958996,1737535881041,-844.08,0.00021912,2]
[349958997,1737535881050,-500.0,0.00021912,2]
[349958998,1737535881060,-500.0,0.00021912,2]
[349958999,1737535881069,-500.0,0.00021912,2]
[349959000,1737535881078,-2817.94,0.00021912,2]
[349959001,1737535881087,-1195.95,0.00021912,2]
[349959002,1737535881096,-500.0,0.00021912,2]
[349959003,1737535881106,-2298.19,0.00021912,2]
[349959004,1737535881115,-721.13,0.00021912,2]
[349959005,1737535881125,-537.9,0.00021912,2]
[349959006,1737535881135,-1122.6,0.00021912,2]
[349959007,1737535881143,-1284.0,0.00021912,2]
[349959008,1737535881153,-584.46,0.00021912,2]
[349959009,1737535881162,-793.95,0.00021913,2]
[349959010,1737535881171,-710.25,0.00021913,2]
[349959011,1737535881181,-500.0,0.00021913,2]
[349959012,1737535881190,-500.0,0.00021913,2]
[349959013,1737535881199,-500.0,0.00021913,2]
[349959014,1737535881209,-1448.78,0.00021913,2]
[349959015,1737535881219,-1032.82,0.00021913,2]
[349959016,1737535881230,-1224.48,0.00021913,2]
[349959017,1737535881239,-565.46,0.00021913,2]
[349959018,1737535881248,-500.0,0.00021913,2]
[349959019,1737535881258,-500.0,0.00021913,2]
[349959020,1737535881267,-496.82,0.00021913,2]
[349959021,1737535881276,-500.0,0.00021913,2]
[349959022,1737535881285,-653.79,0.00021917,2]
[349959023,1737535881294,-653.79,0.00021917,2]
[349959024,1737535881303,-653.79,0.00021917,2]
[349959025,1737535881312,-653.79,0.00021917,2]
[349959026,1737535881322,-653.79,0.00021917,2]
[349959027,1737535881330,-653.79,0.00021917,2]
[349959028,1737535881339,-653.79,0.00021917,2]
[349959029,1737535881348,-653.79,0.00021917,2]
[349959030,1737535881357,-653.79,0.00021917,2]
[349959031,1737535881366,-653.79,0.00021917,2]
[349959032,1737535881375,-554.96,0.00021917,2]
[349959033,1737535881385,-554.96,0.00021917,2]
[349959034,1737535881394,-554.96,0.00021917,2]
[349959035,1737535881402,-554.96,0.00021917,2]
[349959036,1737535881411,-554.96,0.00021917,2]
[349959037,1737535881421,-554.96,0.00021917,2]
[349959038,1737535881430,-554.96,0.00021917,2]
[349959039,1737535881439,-554.96,0.00021917,2]
[349959040,1737535881448,-554.96,0.00021917,2]
[349959041,1737535881458,-554.96,0.00021917,2]
[349959042,1737535881467,-4000.0,0.00021918,2]
[349959043,1737535881477,-150.0,0.00021918,2]
[349959044,1737535881486,-500.0,0.00021918,2]
[349959045,1737535881496,-500.0,0.00021945,2]
[349959046,1737535881505,-500.0,0.00021958,2]
[349959047,1737535881515,-992.43,0.00021959,7]
[349959048,1737535881524,-992.43,0.00021959,7]
[349959049,1737535881533,-231.11515039,0.0002196,2]
[349959050,1737535881542,-500.0,0.00021973,2]
[349959051,1737535881551,-7659.37593735,0.0002198,2]
[349959052,1737535881560,-17786.9525262,0.00021985,2]
[349959053,1737535881570,-2842.4178061,0.00021985,2]
[349959054,1737535881579,-2223.2894205,0.00021985,2]
[349959055,1737535881699,-1604.1610348,0.00021985,2]
[349959056,1737535881709,-985.0326491,0.00021985,2]
[349959057,1737535881721,-365.9042635,0.00021985,2]
[349959058,1737535881730,-298.4547093,0.00021985,2]
[349959059,1737535881740,-298.4547093,0.00021985,2]
[349959060,1737535881749,-298.4547093,0.00021985,2]
[349959061,1737535881758,-298.4547093,0.00021985,2]
[349959062,1737535881769,-298.4547093,0.00021985,2]
[349959063,1737535881779,-559.8650767,0.00021985,2]
[349959064,1737535881788,-534.0187366,0.00021985,2]
[349959065,1737535881798,-508.1723965,0.00021985,2]
[349959066,1737535881807,-482.3260564,0.00021985,2]
[349959067,1737535881816,-456.4797163,0.00021985,2]
[349959068,1737535881825,-168.074362,0.00021985,7]
[349959069,1737535881835,-168.074362,0.00021985,7]
[349959070,1737535881844,-783.061882,0.00021985,2]
[349959071,1737535881853,-746.9115941,0.00021985,2]
[349959072,1737535881863,-710.7613062,0.00021985,2]
[349959073,1737535881872,-674.6110183,0.00021985,2]
[349959074,1737535881881,-638.4607303,0.00021985,2]
[349959075,1737535881891,-306.2730786,0.00021985,2]
[349959076,1737535881900,-292.8155558,0.00021985,2]
[349959077,1737535881910,-279.358033,0.00021985,2]
[349959078,1737535881919,-265.9005102,0.00021985,2]
[349959079,1737535881929,-252.4429874,0.00021985,2]
[349959080,1737535881941,-500.0,0.00021988,13]
[349959081,1737535881950,-3696.31572406,0.00021996,2]
[349959082,1737535881959,-10848.13672615,0.00021997,2]
[349959083,1737535881968,-42041.38709055,0.00021998,2]
[349959084,1737535881978,-594.11928071,0.00021998,2]
[349959085,1737535881988,-190742.48610678,0.00021998,2]
[349959086,1737535881997,-38495.22085317,0.00021998,4]
[349959087,1737535882015,-12674.517128,0.00021998,4]
[349959088,1737535882274,-500.0,0.00019445,2]
[349959089,1737535882283,-500.0,0.00019445,2]
[349959090,1737535882292,-500.0,0.00019445,2]
[349959091,1737535882301,-1739.20979098,0.00021998,4]
[349959092,1737535882312,-2388.6545117,0.00021998,4]
[349959093,1737535882323,-5243.0,0.00021998,4]
[349959094,1737535882335,-930.37344398,0.00021998,4]
[349959095,1737535882346,-336.61,0.00021998,4]
[349959096,1737535882356,-21034.39316901,0.00021998,4]
[349959097,1737535882367,-2097.9866564,0.00021998,4]
[349959098,1737535882378,-1122.20528173,0.00021998,4]
[349959099,1737535882389,-418.4,0.00021998,4]
[349959100,1737535882399,-52330.18056195,0.00021998,4]
[349959101,1737535882411,-27418.71453661,0.00021998,4]
[349959102,1737535882423,-716.88,0.00021998,4]
[349959103,1737535996278,2000.0,0.00024,120]
[349959104,1737536214728,500.0,0.00018,10]
[349959109,1737536593536,2000.0,0.00024,120]
[349959110,1737536691752,155.01,0.00010137,2]
[349959112,1737536739099,-521.3,0.00016907,2]
[349959113,1737536739120,-16392.47519176,0.00017964,2]
[349959114,1737536739141,-160.86345852,0.00018064,2]
[349959115,1737536739162,-500.0,0.00018164,2]
[349959116,1737536739183,-500.0,0.00018164,2]
[349959117,1737536739207,-168.06,0.0001827,2]
[349959118,1737536739228,-1497.209,0.00018356,2]
[349959119,1737536739248,-379.66448263,0.00018357,2]
[349959129,1737537032412,-550.0,0.00015,2]
[349959130,1737537032422,-500.0,0.00018164,2]
[349959131,1737537032432,-483.23,0.00018255,2]
[349959132,1737537032441,-160.86345851,0.00018257,2]
[349959133,1737537032452,-187.82,0.00018326,2]
[349959134,1737537032462,-323.55551737,0.00018357,2]
[349959135,1737537032472,-173.96,0.00018375,2]
[349959136,1737537032483,-250.0,0.00018447,2]
[349959137,1737537032494,-156.78,0.00018576,2]
[349959138,1737537032505,-5733.0,0.00018679,2]